[Event "53rd Mar Del Plata Open 2024"]
[Site "Mar Del Plata"]
[Date "2024.03.24"]
[Round "2.4"]
[White "Fuentes, Agustin"]
[Black "Acosta, Pablo Ismael"]
[Result "0-1"]
[ECO "B28"]
[WhiteElo "2021"]
[BlackElo "2463"]
[Annotator "TA"]
[PlyCount "60"]
[EventDate "2024.03.23"]
[EventType "swiss"]
[EventCountry "ARG"]
[SourceTitle "playchess.com"]
[Source "ChessBase"]
[SourceQuality "1"]
[TimeControl "5400+30"]

{[%evp 9,60,32,24,28,32,26,29,7,9,29,20,12,20,25,33,-2,14,0,-10,-17,-16,-18,-18,-23,-25,-29,-24,-20,-29,-93,-6,-31,-5,-54,-55,-45,-54,-54,-54,-284,-284,-364,-276,-857,-425,-428,-416,-425,-420,-29992,-1109,-29998,-287]} 1. e4 {[%emt 0:00:02]} c5 {[%emt 0:04:55]} 2. Nf3 {[%emt 0:00:11]} a6 {[%emt 0:08:17]} 3. c3 {[%emt 0:02:59]} d5 {[%emt 0:03:30]} 4. exd5 {[%emt 0:01:25]} Qxd5 {[%emt 0:00:07]} 5. d4 {[%emt 0:00:56]} Nf6 {[%emt 0:01:15]} 6. Nbd2 {[%emt 0:04:15]} e6 {[%emt 0:01:43]} 7. Bc4 {[%emt 0:04:13]} Qd8 {[%emt 0:02:46]} 8. a4 {[%emt 0:07:35] White has an edge.} Nc6 {[%emt 0:00:46]} 9. dxc5 {[%emt 0:09:17]} Bxc5 {[%emt 0:03:39]} 10. O-O {[%emt 0:02:22]} O-O {[%emt 0:00:40]} 11. Qe2 {[%emt 0:02:39]} Qc7 {[%emt 0:08:48]} 12. Nb3 {[%emt 0:06:26]} Be7 {[%emt 0:01:14]} 13. Nbd4 {[%emt 0:07:35]} Nxd4 {[%emt 0:01:22]} 14. cxd4 {[%emt 0:00:06]} Rd8 {[%emt 0:04:06]} 15. Rd1 {[%emt 0:04:33]} Bd7 {[%emt 0:04:03]} 16. Ne5 {[%emt 0:03:41]} Be8 {[%emt 0:01:40]} 17. Bf4 {[%emt 0:03:21]} Qa5 {[%emt 0:01:13]} 18. Bd2 {[%emt 0:05:51]} Qb6 {[%emt 0:03:22]} 19. a5 {[%emt 0:03:12]} (19. Bd3 $11 {keeps the balance.}) 19... Qd6 {[%emt 0:04:01]} (19... Qxb2 $17 20. Nf3 (20. Rab1 Qxd4 21. Rxb7 Bc5 $17) 20... Qc2) 20. Bg5 $11 {[%emt 0:12:21]} Rac8 {[%emt 0:02:17]} (20... Qc7 {simplifies} 21. Bf4 Rac8 22. d5 Nxd5 23. Bxd5 Rxd5 24. Rxd5 exd5 25. Ng6 Bd6) 21. Ra3 {[%emt 0:02:06]} (21. b3 $11) 21... Nd5 {[%emt 0:06:05]} (21... Nd7 {simplifies} 22. Bxe7 Qxe7 23. Nxd7 Qxd7 24. Rc3 Qd6) 22. Bxd5 {[%emt 0:05:06] Strongly threatening Bxe7.} Bxg5 {[%emt 0:00:13]} (22... exd5 23. Nxf7 Bxf7 (23... Kxf7 24. Bxe7 Bb5 25. Qf3+ Kxe7 26. Re1+ Kd7 27. Qf7+ Kc6 28. Rc3+ Bc4 29. Rxc4+ Kb5 30. Rxc8 $18) 24. Bxe7 $16 (24. Qxe7 h6 $18)) 23. Bxb7 {[%emt 0:01:14]} Bb5 {[%emt 0:01:42]} 24. Qh5 {[%emt 0:03:51] [#] This costs White the game.} ({Better is} 24. Qe1 $1 $15 Rc2 25. Bf3) 24... Qxd4 $1 $19 {[%emt 0:14:05][%mdl 512]} 25. Qxf7+ {[%emt 0:03:05]} Kh8 {[%emt 0:00:34]} 26. Re1 {[%emt 0:02:34] [#]} (26. Rxd4 $2 Rc1+) (26. Ng6+ $2 hxg6 27. Re1 Rf8 $19) (26. Nd3 Rc1 27. Rxc1 Bxc1 28. h3 Bxd3 29. Rc3 Bxb2 (29... Bg6 $2 30. Qxe6 Bxb2 31. Rc8 $19) 30. Rc8 Rxc8 31. Bxc8) 26... Qxe5 $3 {[%emt 0:02:08][%mdl 512]} 27. Raa1 {[%emt 0:01:52]} Qc7 {[%emt 0:01:49]} (27... Qxb2 28. Bxc8 Rxc8 29. Qxe6 $17) 28. Qh5 {[%emt 0:01:06]} Qxb7 {[%emt 0:18:10]} 29. Qf7 {[%emt 0:01:06]} (29. Qxg5 $19 h6 30. Qe3) 29... Qd5 {[%emt 0:00:30]} (29... Qxf7 $142 30. h4 Rd2 (30... Bxh4 {gets mated.} 31. Kh2 Bxf2 32. Re3 Bxe3 33. Kh3 Qf5+ 34. Kh2 Qe5+ 35. Kh3 Bf2 36. Rh1 Qh5#) 31. Re2 Rxe2 (31... Bxe2 {leads to mate.} 32. Re1 Bd3 33. f3) 32. Rf1 Rxb2 (32... Bxh4 33. Kh2 Qf4+ 34. Kh1 Bxf2 35. Rxf2 Re1+ 36. Rf1 Rxf1#) 33. hxg5 Bxf1 34. Kh2 Qf4+ (34... Qxf2 $2 {is a self mate.} 35. Kh3 Qxg2+ 36. Kh4 Qh3#) 35. Kh1 Qxf2 36. Kh2 Qxg2#) 30. Red1 {[#]} Qd4 $2 {[%emt 0:00:30] Weighted Error Value: White=0.91/Black=0.40.  Loses game:     	White=1     	---        Mistake:       	White=4     	Black=3      Inaccurate:     	White=2     	Black=1      OK:         	White=9     	Black=7      Best:        	---       	Black=1      Brilliant:      	---       	Black=1} 0-1

[Event "53rd Mar Del Plata Open 2024"]
[Site "Mar Del Plata"]
[Date "2024.03.24"]
[Round "2.5"]
[White "Ruiz, Juan Ignacio"]
[Black "Spata, German"]
[Result "0-1"]
[ECO "D02"]
[WhiteElo "2019"]
[BlackElo "2421"]
[Annotator "TA"]
[PlyCount "132"]
[EventDate "2024.03.23"]
[EventType "swiss"]
[EventCountry "ARG"]
[SourceTitle "playchess.com"]
[Source "ChessBase"]
[SourceQuality "1"]
[TimeControl "5400+30"]

{[%evp 35,132,0,-9,-2,36,0,0,0,0,0,0,-158,-165,-195,-143,-133,-112,-280,-294,-502,-458,-506,-454,-445,-422,-526,-494,-607,-411,-404,-338,-331,0,0,0,-347,-363,-553,-538,-550,-543,-546,-545,-516,0,-531,-526,-490,-527,-536,-547,-545,-564,-558,-537,-558,-553,-540,-533,-533,-537,-670,-598,-577,-526,-478,0,-564,-517,-644,-637,-533,-506,-565,-551,-686,-669,-762,-788,-29974,-29975,-29975,-29975,-29974,-29972,-29973,0,-29959,-12816,-5631,-5451,-894,-5531,-5077,-2214,-29995,-29996,-29996,-29993]} 1. d4 {[%emt 0:00:03]} Nf6 {[%emt 0:08:31]} 2. Bf4 {[%emt 0:01:51]} d5 {[%emt 0:01:25]} 3. e3 {[%emt 0:00:23]} c5 {[%emt 0:00:17]} 4. c3 {[%emt 0:00:19]} Nc6 {[%emt 0:01:20]} 5. Nd2 {[%emt 0:02:37]} e6 {[%emt 0:00:47]} 6. Ngf3 {[%emt 0:01:15]} Bd6 {[%emt 0:00:12]} 7. Bg3 {[%emt 0:00:11]} O-O {[%emt 0:01:16]} 8. Bd3 {[%emt 0:00:06]} b6 {[%emt 0:01:03]} 9. Qe2 {[%emt 0:01:55]} Bb7 {[%emt 0:01:04]} 10. Ne5 {[%emt 0:03:15]} Qc7 {[%emt 0:06:50]} 11. f4 {[%emt 0:01:40]} Ne7 {[%emt 0:00:51]} 12. Bh4 {[%emt 0:12:33]} Ne4 {[%emt 0:00:38]} 13. g4 {[%emt 0:10:29]} f6 {[%emt 0:01:53]} 14. Nef3 {[%emt 0:09:19]} Nxd2 {[%emt 0:21:32]} 15. Qxd2 {[%emt 0:17:55]} e5 {[%emt 0:06:53]} 16. dxe5 {[%emt 0:02:11]} fxe5 {[%emt 0:01:24]} 17. Ng5 {[%emt 0:01:58]} e4 {[%emt 0:04:50]} 18. Be2 {[%emt 0:02:21]} Ng6 $1 {[%emt 0:03:05]} 19. Bg3 $1 {[%emt 0:01:37]} Qe7 {[%emt 0:02:21]} (19... Rae8 $5) 20. h4 {[%emt 0:02:25]} h6 {[%emt 0:07:19]} 21. Nh3 $1 {[%emt 0:07:10]} ({Don't go for} 21. h5 $2 Nxf4 22. Bxf4 Bxf4 (22... hxg5 $2 23. Bxd6 Qxd6 24. O-O-O $19) 23. exf4 hxg5 24. fxg5 e3 $19) 21... Nxh4 {[%emt 0:01:28]} 22. O-O-O {[%emt 0:00:22]} Nf3 {[%emt 0:01:30]} 23. Bxf3 $2 {[%emt 0:01:54]} ({Only move:} 23. Qc2 $11) 23... exf3 $17 {[%emt 0:00:02]} 24. g5 {[%emt 0:00:01]} h5 {[%emt 0:07:03]} ({Better is} 24... Rae8 $19 25. gxh6 Qxe3 26. Qxe3 Rxe3) 25. g6 $17 {[%emt 0:01:43]} Rf5 {[%emt 0:00:00]} 26. Ng5 $2 {[%emt 0:01:45]} (26. Qd3 $17 Raf8 27. Bf2) 26... Rxg5 $19 {[%emt 0:03:11]} 27. fxg5 $2 {[%emt 0:02:01]} (27. Bh4 {was the only defense.} Rg2 28. Bxe7 Rxd2 29. Kxd2 Bxe7 30. Rxh5) 27... Bxg3 $19 {[%emt 0:01:46]} 28. Rxh5 {[%emt 0:00:02]} Qe4 {[%emt 0:02:44]} 29. Rh3 {[%emt 0:02:02]} Be5 {[%emt 0:03:01]} 30. Rdh1 {[%emt 0:03:21]} Qxg6 {[%emt 0:01:20]} 31. Qd1 {[%emt 0:00:59]} Qe4 {[%emt 0:03:23]} 32. g6 {[%emt 0:06:10]} Qxg6 {[%emt 0:01:07]} 33. Qxf3 {[%emt 0:00:23]} Qf6 $2 {[%emt 0:03:49]} (33... Bf6 $19 {aiming for ...Kf7.} 34. a3 Kf7) 34. Qg2 $1 $11 {[%emt 0:01:39]} Qe6 {[%emt 0:01:31]} 35. Rh6 $2 {[%emt 0:02:49][%mdl 8192] [#]} (35. Rh7 $1 $11 {and White stays safe.}) 35... Bf6 $1 $19 {[%emt 0:00:39]} 36. Qg6 {[%emt 0:00:14]} (36. R1h3 {is a better defense.}) 36... Qxe3+ $19 {[%emt 0:01:28]} 37. Kd1 {[%emt 0:00:01]} Qf3+ {[%emt 0:00:26]} 38. Kc1 {[%emt 0:00:09]} Qf4+ {[%emt 0:00:23]} 39. Kd1 {[%emt 0:00:06]} Qf3+ {[%emt 0:00:50]} 40. Kc1 $1 {[%emt 0:00:20] [#]} Kf8 $1 {[%emt 0:00:39]} 41. Rh8+ {[%emt 0:00:15]} Ke7 {[%emt 0:00:00]} 42. Re1+ {[%emt 0:00:31]} Kd6 {[%emt 0:00:22]} 43. Rxa8 {[%emt 0:00:29]} Bxa8 {[%emt 0:00:57]} 44. Qe8 {[%emt 0:00:41]} Qf4+ {[%emt 0:00:34]} 45. Kb1 {[%emt 0:00:26]} Qf5+ {[%emt 0:00:11]} 46. Ka1 {[%emt 0:00:11]} Bb7 {[%emt 0:00:52]} 47. Qb8+ {[%emt 0:01:11]} Kc6 {[%emt 0:00:10]} 48. Qxa7 {[%emt 0:00:32]} Kc7 {[%emt 0:00:33]} 49. a4 {[%emt 0:00:37]} Qd7 {[%emt 0:00:19]} 50. Kb1 {[%emt 0:00:30]} Qf5+ {[%emt 0:00:43]} 51. Ka1 $1 {[%emt 0:00:05]} Qf4 {[%emt 0:00:41]} 52. Re8 {[%emt 0:00:58]} Qf1+ {[%emt 0:00:34]} 53. Ka2 {[%emt 0:00:04]} Qa6 {[%emt 0:00:34]} 54. Qb8+ {[%emt 0:00:08]} Kd7 {[%emt 0:00:04]} 55. b3 {[%emt 0:02:10]} c4 {[%emt 0:00:08]} (55... Bxc3 56. Qd8+ Kc6 57. Re6#) 56. Rf8 {[%emt 0:01:20]} cxb3+ {[%emt 0:00:13]} ({Worse is} 56... Bxc3 57. Rf7+ Ke6 58. Qe8+ (58. Qxb7 cxb3+ 59. Ka3 Qxb7 $11) 58... Kd6 59. Qe7+ Kc6 60. Qc7#) 57. Kxb3 {[%emt 0:00:46]} Qc4+ {[%emt 0:00:07]} 58. Kc2 {[%emt 0:00:00]} Qxc3+ {[%emt 0:00:50]} 59. Kd1 {[%emt 0:00:01]} Qd4+ {[%emt 0:01:20]} 60. Kc1 {[%emt 0:00:30]} Qc3+ {[%emt 0:00:28]} 61. Kd1 {[%emt 0:00:06]} Qd3+ {[%emt 0:00:10]} 62. Kc1 {[%emt 0:00:05]} Bg5+ {[%emt 0:01:03]} 63. Kb2 {[%emt 0:00:01]} Qd4+ {[%emt 0:00:26]} 64. Kb1 {[%emt 0:00:12]} Qd1+ {[%emt 0:00:09]} 65. Kb2 {[%emt 0:00:22]} Bc1+ {[%emt 0:00:10]} 66. Kb1 {[%emt 0:00:41]} Bf4+ {[%emt 0:00:11]} 0-1

[Event "53rd Mar Del Plata Open 2024"]
[Site "Mar Del Plata"]
[Date "2024.03.24"]
[Round "2.6"]
[White "Bazan, Octavio Aaron"]
[Black "Marrujo Pardo, Mauricio Emmanuel"]
[Result "0-1"]
[ECO "C89"]
[WhiteElo "2009"]
[BlackElo "2337"]
[Annotator "RC"]
[PlyCount "52"]
[EventDate "2024.03.23"]
[EventType "swiss"]
[EventCountry "ARG"]
[SourceTitle "playchess.com"]
[Source "ChessBase"]
[SourceQuality "1"]
[TimeControl "5400+30"]

1. e4 {[%emt 0:00:04]} e5 {[%emt 0:02:49]} 2. Nf3 {[%emt 0:00:33]} Nc6 {[%emt 0:00:04]} 3. Bb5 {[%emt 0:00:13]} a6 {[%emt 0:01:08]} 4. Ba4 {[%emt 0:00:05]} Nf6 {[%emt 0:01:44]} 5. O-O {[%emt 0:00:14]} Be7 {[%emt 0:01:11]} 6. Re1 {[%emt 0:00:18]} b5 {[%emt 0:00:14]} 7. Bb3 {[%emt 0:00:05]} O-O {[%emt 0:00:08]} 8. c3 {[%emt 0:00:28]} d5 {[%emt 0:00:26]} 9. exd5 {[%emt 0:00:01]} Nxd5 {[%emt 0:00:02]} 10. Nxe5 {[%emt 0:00:02]} Nxe5 {[%emt 0:00:01]} 11. Rxe5 {[%emt 0:00:00]} c6 {[%emt 0:00:01]} 12. d4 {[%emt 0:01:29]} Bd6 {[%emt 0:00:17]} 13. Re1 {[%emt 0:00:12]} Qh4 {[%emt 0:00:20]} 14. g3 {[%emt 0:00:05]} Qh3 {[%emt 0:00:05]} 15. Re4 {[%emt 0:00:05]} g5 {[%emt 0:00:05]} 16. Qf1 {[%emt 0:00:04]} Qh5 {[%emt 0:18:50]} 17. Nd2 {[%emt 0:00:10]} Bf5 {[%emt 0:00:25]} 18. f3 {[%emt 0:02:38]} Nf6 {[%emt 0:14:40]} 19. Qg2 {[%emt 0:00:13]} Nxe4 {[%emt 0:03:44]} 20. fxe4 {[%emt 0:00:26]} Bh3 {[%emt 0:00:14]} 21. Qf2 {[%emt 0:02:08]} Rae8 {[%emt 0:00:17]} 22. e5 {[%emt 0:12:02]} Bxe5 {[%emt 0:00:02]} 23. dxe5 {[%emt 0:00:51]} Rxe5 {[%emt 0:00:01]} 24. Bc2 {[%emt 0:29:29]} Rfe8 {[%emt 0:00:40]} 25. Ne4 {[%emt 0:00:23]} Rxe4 {[%emt 0:00:02]} 26. Bxe4 {[%emt 0:00:30]} Qd1+ {[%emt 0:56:00]} 0-1

[Event "53rd Mar Del Plata Open 2024"]
[Site "Mar Del Plata"]
[Date "2024.03.24"]
[Round "2.7"]
[White "Espinoza Palomino, Willyam"]
[Black "Arias Diaz, Miguel Angel"]
[Result "1-0"]
[ECO "B15"]
[WhiteElo "2400"]
[BlackElo "1996"]
[Annotator "TA"]
[PlyCount "131"]
[EventDate "2024.03.23"]
[EventType "swiss"]
[EventCountry "ARG"]
[SourceTitle "playchess.com"]
[Source "ChessBase"]
[SourceQuality "1"]
[TimeControl "5400+30"]

{[%evp 14,131,35,23,31,21,63,22,20,12,29,22,19,10,23,0,0,0,0,0,27,2,0,-32,41,28,44,48,39,31,43,22,45,47,35,38,52,47,296,284,277,256,260,236,246,265,246,73,100,84,167,178,257,258,394,379,656,656,661,0,0,0,0,0,0,0,0,-120,0,0,0,0,0,0,0,0,0,0,0,0,0,0,417,379,1009,321,262,229,190,0,0,0,848,845,29965,434,681,638,175,0,0,0,29970,29971,29974,29974,29981,29982,29982,29983,29991,29990,29993,29991,29991,29992,29992,29993,29993,29994]} 1. e4 {[%emt 0:00:07]} c6 {[%emt 0:00:07]} 2. d4 {[%emt 0:00:11]} d5 {[%emt 0:00:02]} 3. Nc3 {[%emt 0:00:06]} dxe4 {[%emt 0:00:11]} 4. Nxe4 {[%emt 0:00:02]} Nf6 {[%emt 0:00:07]} 5. Nxf6+ {[%emt 0:00:04]} exf6 {[%emt 0:00:03]} 6. c3 {[%emt 0:01:28]} Bd6 {[%emt 0:00:06]} 7. Bd3 {[%emt 0:00:06]} O-O {[%emt 0:00:12]} 8. Qc2 {[%emt 0:00:03]} Re8+ {[%emt 0:00:13]} 9. Ne2 {[%emt 0:00:06]} h5 {[%emt 0:00:16]} 10. Be3 {[%emt 0:01:03]} Nd7 {[%emt 0:01:11] The position is equal.} 11. O-O-O {[%emt 0:01:53]} Nf8 {[%emt 0:01:17]} 12. Kb1 {[%emt 0:05:20]} Be6 {[%emt 0:01:54]} 13. c4 {[%emt 0:14:01]} Rc8 {[%emt 0:02:17]} 14. Nc3 {[%emt 0:00:46]} Bb4 {[%emt 0:01:21][%cal Bd6b4,Bb4e7,Be7f6][%mdl 32]} 15. Ne4 {[%emt 0:05:53]} Be7 {[%emt 0:01:04]} 16. h3 {[%emt 0:15:50][%cal Og2g4]} f5 {[%emt 0:16:43]} 17. Nc3 {[%emt 0:04:44]} g6 {[%emt 0:31:53]} 18. d5 {[%emt 0:09:11]} Bd7 {[%emt 0:00:11]} (18... cxd5 $15 19. cxd5 Bd7 (19... Bxd5 20. Be2 $11)) 19. Be2 {[%emt 0:05:47]} Bf6 {[%emt 0:03:20]} 20. Bf3 {[%emt 0:09:19]} (20. Bxa7 c5 (20... Bxc3 21. bxc3 c5 22. Qb2 $17) 21. Nb5 Qa5 $17) 20... Qa5 {[%emt 0:06:26]} 21. Bd4 $36 {[%emt 0:01:52][%mdl 2048] Black is under pressure.} Nh7 {[%emt 0:00:33]} 22. Qd2 {[%emt 0:07:27] Black must now prevent Bxf6.} Qa6 {[%emt 0:07:27]} 23. Bxf6 {[%emt 0:05:58]} Nxf6 {[%emt 0:00:07]} 24. Qd4 {[%emt 0:00:40]} c5 {[%emt 0:00:12]} 25. Qf4 {[%emt 0:01:14]} Ne4 $2 {[%emt 0:02:13]} 26. Bxe4 $18 {[%emt 0:02:43]} fxe4 {[%emt 0:04:29]} 27. d6 {[%emt 0:00:41]} (27. Nxe4 $2 Rxe4 28. Qxe4 Bf5 $19) 27... Kg7 {[%emt 0:12:52]} 28. Nd5 {[%emt 0:05:33] Black is weak on the dark squares} (28. Nxe4 $2 Rxe4 29. Qxe4 Bf5 $19) 28... Re6 {[%emt 0:00:05] Prevents Qf6+} 29. Nc7 {[%emt 0:00:47]} Qxc4 {[%emt 0:00:30]} 30. Nxe6+ $2 {[%emt 0:00:38]} (30. Rhe1 $18) 30... Bxe6 $16 {[%emt 0:00:01]} 31. b3 {[%emt 0:00:35]} Qb5 {[%emt 0:05:35]} (31... Qc3 $16) 32. Qe5+ $1 $18 {[%emt 0:00:23]} (32. Qxe4 $2 Bf5 $19) 32... Kh7 {[%emt 0:00:36]} (32... Kg8 {was necessary.} 33. g4 (33. Qxe4 $2 Bf5 $19) (33. Rhe1 Re8 $16) 33... Re8) 33. g4 $1 {[%emt 0:01:07]} (33. Qxe4 $2 Bf5 $19) 33... h4 {[%emt 0:00:20]} (33... Qe8 {was worth a try.} 34. Rhe1 (34. gxh5 Bf5 $18) 34... Qh8) 34. Rhe1 {[%emt 0:00:56]} (34. Qxe4 c4 $16) 34... a5 $2 {[%emt 0:02:08]} (34... Qb6 35. Re3 (35. Rxe4 c4 $18) (35. Qxe4 Rd8 $18) 35... Re8 36. Qxe4 (36. Rxe4 Bxb3 37. Qxe8 Ba4+ 38. Kc1 Bxe8 $18) 36... Kg8) 35. Rxe4 {[%emt 0:00:14]} Re8 {[%emt 0:00:49]} 36. Qf4 $2 {[%emt 0:01:06]} (36. f3 $18) 36... Bxb3 $1 $11 {[%emt 0:00:37]} 37. Rxe8 {[%emt 0:00:32]} Bxd1+ {[%emt 0:00:59]} 38. Kc1 {[%emt 0:00:01] Dancing on a razor blade.} Qxe8 {[%emt 0:00:27]} 39. Kxd1 {[%emt 0:00:02][%mdl 4096] Endgame. KQ-KQ} Kg7 {[%emt 0:00:32]} 40. g5 {[%emt 0:00:13]} (40. Qd2 $11 {keeps the balance.} Qa4+ 41. Kc1) 40... Qe6 {[%emt 0:00:22]} ({Better is} 40... Kf8 $1 $17 {Strongly threatening ...Qe6.} 41. Qxh4 Qe5) 41. Qd2 $1 {[%emt 0:00:06] Threatens to win with d7.} Qd7 {[%emt 0:00:41]} (41... Qxh3 $2 42. d7 $18) 42. Qd5 {[%emt 0:00:01]} f6 {[%emt 0:00:28]} (42... Qxh3 $2 43. d7 Qg4+ 44. Kc1 $18) 43. Qxc5 {[%emt 0:03:11] Hoping for Qc7.} Qa4+ {[%emt 0:00:22]} 44. Kc1 {[%emt 0:00:00]} Qf4+ {[%emt 0:00:13]} 45. Kb2 {[%emt 0:00:21]} Qd2+ {[%emt 0:00:16]} 46. Kb3 {[%emt 0:00:13]} Qd1+ $1 {[%emt 0:01:08]} 47. Ka3 {[%emt 0:00:40] And now Qc7+ would win.} (47. Kc4 $5 Qe2+ $8 48. Kb3 fxg5 49. Qd5 Qxf2 50. d7 Qb6+ 51. Kc2 $11) 47... Qd3+ $2 {[%emt 0:00:24][%mdl 8192]} (47... fxg5 $11 48. Qe5+ (48. Qxa5 $2 Qxd6+ 49. Kb2 Qf4 $19) 48... Kh7) 48. Ka4 $18 {[%emt 0:00:15]} fxg5 $2 {[%emt 0:00:38]} (48... Kf7 49. gxf6 (49. Qxa5 Qxd6 50. gxf6 Qd1+ 51. Kb5 Qb1+ 52. Kc5 Qf5+ 53. Kb4 Qxf2 $19) (49. Kxa5 Qa6+ 50. Kb4 Ke6 $16) 49... Qd2) 49. Qe5+ $2 {[%emt 0:00:54]} (49. Qxa5 Qd1+ (49... Qxh3 $2 50. Qe5+ Kh7 51. Qe7+ Kh6 52. Qf8+ Kh7 53. Qf7+ Kh6 54. d7 $18) (49... Qxd6 50. Qxg5 Qd4+ 51. Ka3 $17) 50. Kb5 Qxd6 51. Qc3+ Kh7 $17) (49. Kxa5 Kf6 $18) (49. Qc7+ Kh6 50. d7 (50. Qxa5 Qxd6 51. f3 Qd1+ 52. Ka3 Qxf3+ 53. Kb4 Qe4+ 54. Ka3 Qd3+ 55. Kb2 Qxh3 $19) (50. Kxa5 Qa3+ 51. Kb6 Qa6+ 52. Kc5 Qa3+ 53. Kd4 Qxa2 $11)) 49... Kh7 {[%emt 0:00:29]} 50. Qe7+ {[%emt 0:00:31]} (50. Qxa5 $2 Qd1+ (50... Qxd6 51. Qxg5 Qd4+ 52. Kb3 $17) 51. Kb5 Qd5+ (51... Qxd6 $2 52. f3 $19) 52. Kb6 Qxd6+ 53. Kxb7 Qe7+ (53... g4 $2 54. hxg4 h3 55. Qe1 $19) 54. Kc8 g4 55. hxg4 h3 $19) (50. Kxa5 Qa6+ 51. Kb4 Qb6+ 52. Ka3 Qa7+ 53. Kb3 Qb6+ 54. Kc3 Qc6+ 55. Kd4 Qa4+ 56. Ke3 Qxa2 $16 (56... Qa3+ 57. Ke4 $11)) (50. Qxg5 Qc4+ 51. Kxa5 Qa6+ 52. Kb4 Qxd6+ 53. Qc5 Qe6 $11) 50... Kh6 {[%emt 0:00:18]} 51. d7 $2 {[%emt 0:00:27]} (51. Kxa5 Qa6+ 52. Kb4 Qb6+ 53. Kc3 Qc5+ 54. Kd2 Qxf2+ 55. Kd3 Qf3+ (55... Qxa2 56. Qe5 $11) 56. Kd4 Qf2+ 57. Kd3 Qf3+ (57... Qxa2 58. d7 $11) 58. Kd4 Qf2+ 59. Kc4 Qxa2+ 60. Kb4 Qd2+ 61. Kb5 Qb2+ 62. Ka5 Qd4 $11) ({Only move:} 51. Qf8+ $1 $18 Kh7 52. Qe7+ (52. Kxa5 Qa6+ 53. Kb4 Qb6+ 54. Kc4 Qb2 $18) 52... Kh6 53. Qf8+ (53. Kxa5 Qa6+ 54. Kb4 Qb6+ 55. Kc3 Qc5+ 56. Kb2 Qb4+ 57. Kc1 Qc3+ 58. Kb1 Qb4+ 59. Kc2 Qc4+ 60. Kd1 Qd3+ 61. Kc1 Qc4+ 62. Kd1 Qd3+ 63. Ke1 Qb1+ 64. Ke2 Qc2+ 65. Kf1 Qd1+ 66. Kg2 Qd5+ 67. Kg1 Qd1+ 68. Kg2 Qd5+ 69. Kh2 Qf3 $11) (53. d7 Qc4+ 54. Kxa5 b6+ 55. Kxb6 Qd4+ 56. Kc6 Qa4+ 57. Kd5 Qxa2+ 58. Kd4 Qa1+ 59. Kc4 Qa4+ 60. Kc3 Qa1+ 61. Kb4 Qd4+ 62. Kb5 Qd3+ 63. Kb6 Qd4+ 64. Kb7 Qd5+ 65. Kb6 Qd4+ 66. Kb5 Qd3+ 67. Kb6 Qd4+ $11) 53... Kh7 54. Kxa5 b6+ 55. Kb4 (55. Kxb6 Qd4+ 56. Kc6 Qc4+ 57. Kd7 Qb5+ 58. Ke6 Qc4+ 59. Ke5 Qe2+ 60. Kd5 Qd3+ 61. Kc5 Qa3+ 62. Kb5 Qd3+ 63. Kb6 Qd4+ 64. Kb5 Qd5+ 65. Kb4 Qd2+ 66. Kb5 Qd5+ 67. Kb6 Qd4+ $11)) 51... Qc4+ $11 {[%emt 0:00:42]} 52. Kxa5 {[%emt 0:00:02]} Qc7+ $2 {[%emt 0:00:31][%mdl 8192]} (52... b6+ $11 53. Kxb6 Qd4+ 54. Kc6 Qa4+ 55. Kb6 Qd4+ 56. Kc6 Qa4+ 57. Kd5 Qxa2+ 58. Kd4 Qd2+ 59. Kc5 Qc3+ 60. Kb6 Qd4+ 61. Kc6 Qa4+ 62. Kd5 Qb5+ 63. Kd4 Qa4+ 64. Kc3 Qa1+ 65. Kb3 Qb1+ 66. Kc3 Qc1+ 67. Kd3 Qd1+ 68. Kc3 Qc1+ 69. Kb3 Qd1+ 70. Kc3 Qc1+) 53. Kb4 $18 {[%emt 0:00:38]} Qf4+ {[%emt 0:00:29]} 54. Kc3 {[%emt 0:00:24]} (54. Kb5 $142 Qf5+ 55. Kb6 Qxf2+ 56. Qc5 (56. Kxb7 Qg2+ 57. Kb6 Qb2+ 58. Kc6 Qg2+ 59. Kc7 Qg3+ 60. Qd6 Qc3+ 61. Kb7 Qxh3 $18) 56... Qf6+ 57. Kc7 (57. Kxb7 Kh5 $18) 57... Qf7 58. Qd4 (58. Kxb7 $2 Qxd7+ 59. Kb8 Qxh3 $19) 58... Kh7 59. Kb8 (59. Kxb7 g4 $18)) 54... Qc1+ {[%emt 0:00:25]} 55. Kb3 {[%emt 0:00:31]} Qb1+ {[%emt 0:00:31] [#]} 56. Ka3 $2 {[%emt 0:00:45]} (56. Kc4 $1 $18 Qc2+ 57. Kb4 Qd2+ 58. Kb5 Qb2+ 59. Ka5 Qxa2+ 60. Kb6 Qxf2+ 61. Qc5 (61. Kxb7 Qf3+ 62. Kc7 Qc3+ 63. Kd8 Qh8+ 64. Qe8 Qf6+ 65. Kc7 Qc3+ 66. Kd6 Qf6+ 67. Qe6 Qf8+ 68. Kc7 Qc5+ 69. Qc6 Qe5+ 70. Kb7 Qa5 $18) 61... Qf6+ 62. Kc7 (62. Kxb7 Kh5 $18)) 56... Qc1+ $11 {[%emt 0:00:25]} 57. Kb4 {[%emt 0:00:31]} (57. Ka4 $5 Qc4+ $8 58. Ka5 b6+ 59. Kxb6 Qd4+ 60. Kb7 Qd5+ 61. Ka6 Qd3+ 62. Ka7 Qd4+ 63. Kb7 Qd5+ 64. Kb6 Qd4+ 65. Kc6 Qa4+ 66. Kd5 Qxa2+ 67. Kd4 Qa4+ 68. Ke3 Qb3+ 69. Kd4 Qa4+ 70. Ke3 Qb3+ 71. Ke2 Qb5+ 72. Ke3 Qb6+ 73. Ke2 Qb5+ 74. Ke1 Qa5+ 75. Kd1 Qa4+ 76. Kd2 Qa2+ 77. Ke3 Qb3+ $11) 57... Qb2+ $2 {[%emt 0:00:07][%mdl 8192]} (57... Qf4+ $11 58. Kb5 Qf5+ 59. Kb6 Qxf2+ 60. Qc5 (60. Kxb7 Qg2+ 61. Kc7 Qc2+ 62. Kd8 g4 $18) 60... Qf6+ 61. Kxb7 g4 62. Qc1+ (62. hxg4 Qf3+ 63. Qc6 Qf8 $18) 62... Kh7) 58. Ka5 {[%emt 0:00:20] White mates.} Qxa2+ {[%emt 0:00:59]} 59. Kb6 {[%emt 0:00:07]} Qa6+ {[%emt 0:00:34]} 60. Kc7 {[%emt 0:00:04]} Qc4+ {[%emt 0:00:30]} 61. Kd8 {[%emt 0:00:47] Active counter play!} ({And not} 61. Kxb7 Qb5+ 62. Kc7 Qa5+ 63. Kc6 Qa6+ 64. Kc7 Qa7+ 65. Kc6 Qa6+ 66. Kc7 Qa5+ 67. Kc6 Qa6+ $11) 61... Qc6 {[%emt 0:00:31]} 62. Ke8 {[%emt 0:00:20]} b5 {[%emt 0:00:24]} 63. Kf8 {[%emt 0:00:36]} Qf3+ {[%emt 0:00:20]} 64. Kg8 {[%emt 0:00:18][%csl Gg8][%cal Re7h7]} Qd5+ {[%emt 0:00:45] [#]} 65. Qf7 $1 {[%emt 0:00:04]} Qa8+ {[%emt 0:00:30]} 66. Qf8+ {[%emt 0:00:03] Weighted Error Value: White=0.44/Black=0.52.  Loses game:     	---       	Black=4      Missed win:     	White=2     	---        Mistake:       	White=2     	Black=7      Inaccurate:     	White=2     	Black=4      OK:         	White=17    	Black=18     Best:        	White=8     	Black=5      Strong:       	White=3     	Black=1} 1-0